[Event "Late-Titled-Tuesday-Blitz-February-06-2024"]
[Site "Chess.com"]
[Date "2024.02.06"]
[Round "9"]
[White "LUISMIGUELOV"]
[Black "Bala-Afiada"]
[Result "0-1"]
[WhiteElo "2189"]
[BlackElo "2031"]
[TimeControl "180+1"]
[EndTime "15:42:12 PST"]
[Termination "Bala-Afiada won by resignation"]

1. d4 {[%clk 0:03:00.9]} 1... Nf6 {[%clk 0:02:59.6]} 2. c3 {[%clk 0:03:00.3]}
2... e6 {[%clk 0:02:58.9]} 3. Bg5 {[%clk 0:03:00.7]} 3... Be7 {[%clk 0:02:58.4]}
4. h4 {[%clk 0:03:00.1]} 4... h6 {[%clk 0:02:57.9]} 5. Bf4 {[%clk 0:02:59.5]}
5... d5 {[%clk 0:02:55.5]} 6. Nf3 {[%clk 0:02:59.2]} 6... c5 {[%clk 0:02:55.6]}
7. e3 {[%clk 0:02:58.1]} 7... Nc6 {[%clk 0:02:54]} 8. Nbd2 {[%clk 0:02:53.7]}
8... cxd4 {[%clk 0:02:47.5]} 9. exd4 {[%clk 0:02:53.1]} 9... O-O {[%clk
0:02:46.3]} 10. Bd3 {[%clk 0:02:52.8]} 10... Bd6 {[%clk 0:02:46.2]} 11. Bxd6
{[%clk 0:02:50.1]} 11... Qxd6 {[%clk 0:02:45.5]} 12. Qe2 {[%clk 0:02:50]} 12...
Re8 {[%clk 0:02:36.4]} 13. O-O {[%clk 0:02:49.7]} 13... e5 {[%clk 0:02:32.6]}
14. dxe5 {[%clk 0:02:49.4]} 14... Nxe5 {[%clk 0:02:33.5]} 15. Nxe5 {[%clk
0:02:49.3]} 15... Rxe5 {[%clk 0:02:33.6]} 16. Qf3 {[%clk 0:02:47.1]} 16... Bg4
{[%clk 0:02:30.2]} 17. Qg3 {[%clk 0:02:47]} 17... Qe7 {[%clk 0:02:21.3]} 18. Nf3
{[%clk 0:02:42.6]} 18... Bxf3 {[%clk 0:02:16.4]} 19. Qxf3 {[%clk 0:02:42]} 19...
Re8 {[%clk 0:02:11.8]} 20. g3 {[%clk 0:02:39.7]} 20... Ne4 {[%clk 0:01:56.5]}
21. Rad1 {[%clk 0:02:35.4]} 21... f5 {[%clk 0:01:53.6]} 22. Kg2 {[%clk
0:02:27.1]} 22... Rf8 {[%clk 0:01:34.5]} 23. Rfe1 {[%clk 0:02:19.9]} 23... Rf6
{[%clk 0:01:17.3]} 24. c4 {[%clk 0:02:16.1]} 24... dxc4 {[%clk 0:01:09.2]} 25.
Bxc4+ {[%clk 0:02:15.4]} 25... Kh8 {[%clk 0:01:08.9]} 26. Qd3 {[%clk 0:01:56.9]}
26... Qc5 {[%clk 0:00:51.6]} 27. Qd8+ {[%clk 0:01:53.8]} 27... Kh7 {[%clk
0:00:51.1]} 28. h5 {[%clk 0:01:42.1]} 28... Qxf2+ {[%clk 0:00:50.1]} 0-1

[Event "Late-Titled-Tuesday-Blitz-February-06-2024"]
[Site "Chess.com"]
[Date "2024.02.06"]
[Round "9"]
[White "romulocardoso"]
[Black "BozeKat"]
[Result "0-1"]
[WhiteElo "2152"]
[BlackElo "2014"]
[TimeControl "180+1"]
[EndTime "15:42:27 PST"]
[Termination "BozeKat won by resignation"]

1. e4 {[%clk 0:02:57.4]} 1... c5 {[%clk 0:02:59.5]} 2. Nf3 {[%clk 0:02:56.8]}
2... a6 {[%clk 0:02:59.8]} 3. d4 {[%clk 0:02:56.3]} 3... cxd4 {[%clk 0:02:59.5]}
4. Nxd4 {[%clk 0:02:57.2]} 4... e5 {[%clk 0:02:58.5]} 5. Nf5 {[%clk 0:02:55.8]}
5... d5 {[%clk 0:02:56.1]} 6. Bd3 {[%clk 0:02:56.4]} 6... dxe4 {[%clk
0:02:42.9]} 7. Bxe4 {[%clk 0:02:57.3]} 7... Qxd1+ {[%clk 0:02:42.9]} 8. Kxd1
{[%clk 0:02:57.3]} 8... Nf6 {[%clk 0:02:43.5]} 9. Ng3 {[%clk 0:02:53.9]} 9...
Nxe4 {[%clk 0:02:37.3]} 10. Nxe4 {[%clk 0:02:54.8]} 10... Bf5 {[%clk 0:02:37.1]}
11. Ng3 {[%clk 0:02:53.6]} 11... Bg6 {[%clk 0:02:28.6]} 12. Re1 {[%clk 0:02:42]}
12... Nc6 {[%clk 0:02:28.1]} 13. c3 {[%clk 0:02:31.6]} 13... Bc5 {[%clk
0:02:12.4]} 14. f4 {[%clk 0:02:28.2]} 14... Bf2 {[%clk 0:02:10.2]} 15. Rf1
{[%clk 0:02:20.3]} 15... O-O-O+ {[%clk 0:01:44.9]} 16. Bd2 {[%clk 0:02:02.4]}
16... Bxg3 {[%clk 0:01:21.5]} 17. hxg3 {[%clk 0:02:03.3]} 17... e4 {[%clk
0:01:22]} 18. f5 {[%clk 0:01:59.7]} 18... Bh5+ {[%clk 0:01:17.2]} 19. Kc2 {[%clk
0:01:58.5]} 19... Be2 {[%clk 0:01:15.4]} 20. Re1 {[%clk 0:01:57.1]} 20... Bd3+
{[%clk 0:01:15.1]} 21. Kc1 {[%clk 0:01:57]} 21... Rhe8 {[%clk 0:01:05.6]} 22. g4
{[%clk 0:01:48.3]} 22... Ne5 {[%clk 0:01:00.7]} 23. g5 {[%clk 0:01:46.6]} 23...
Bxb1 {[%clk 0:00:59.1]} 24. Rxb1 {[%clk 0:01:43.8]} 24... Nd3+ {[%clk
0:00:59.2]} 25. Kd1 {[%clk 0:01:44.4]} 25... Nxe1 {[%clk 0:00:58]} 26. Kxe1
{[%clk 0:01:44.9]} 26... e3 {[%clk 0:00:57.1]} 27. Bc1 {[%clk 0:01:44.4]} 27...
Rd5 {[%clk 0:00:52.1]} 28. g4 {[%clk 0:01:42.4]} 28... g6 {[%clk 0:00:48.7]} 29.
Ke2 {[%clk 0:01:31.9]} 29... gxf5 {[%clk 0:00:47.3]} 30. gxf5 {[%clk 0:01:27.5]}
30... Rxf5 {[%clk 0:00:48.2]} 0-1

[Event "Late-Titled-Tuesday-Blitz-February-06-2024"]
[Site "Chess.com"]
[Date "2024.02.06"]
[Round "9"]
[White "JonasGallasch"]
[Black "Philippians46"]
[Result "0-1"]
[WhiteElo "2435"]
[BlackElo "2691"]
[TimeControl "180+1"]
[EndTime "15:42:31 PST"]
[Termination "Philippians46 won by checkmate"]

1. d4 {[%clk 0:02:50.1]} 1... Nf6 {[%clk 0:02:59]} 2. c4 {[%clk 0:02:49.7]} 2...
g6 {[%clk 0:02:59.5]} 3. Nc3 {[%clk 0:02:48.2]} 3... d5 {[%clk 0:03:00.4]} 4.
Nf3 {[%clk 0:02:47.3]} 4... Bg7 {[%clk 0:02:59.5]} 5. h4 {[%clk 0:02:47.5]} 5...
c5 {[%clk 0:02:58.6]} 6. dxc5 {[%clk 0:02:33]} 6... Be6 {[%clk 0:02:58.7]} 7. h5
{[%clk 0:02:31.8]} 7... Nxh5 {[%clk 0:02:55.2]} 8. cxd5 {[%clk 0:02:31.6]} 8...
Bxc3+ {[%clk 0:02:54.8]} 9. bxc3 {[%clk 0:02:31.9]} 9... Qxd5 {[%clk 0:02:55.3]}
10. Qxd5 {[%clk 0:02:23.9]} 10... Bxd5 {[%clk 0:02:56.2]} 11. Bb2 {[%clk
0:02:24.5]} 11... Nf6 {[%clk 0:02:53.3]} 12. e3 {[%clk 0:02:21.2]} 12... Nbd7
{[%clk 0:02:52.4]} 13. c4 {[%clk 0:02:19]} 13... Bc6 {[%clk 0:02:46.9]} 14. Nd4
{[%clk 0:02:14.3]} 14... Rc8 {[%clk 0:02:45.1]} 15. Ba3 {[%clk 0:02:09.5]} 15...
O-O {[%clk 0:02:43.9]} 16. Be2 {[%clk 0:02:04.3]} 16... Bxg2 {[%clk 0:02:43.1]}
17. Rg1 {[%clk 0:02:02.3]} 17... Be4 {[%clk 0:02:43.2]} 18. f3 {[%clk
0:02:01.1]} 18... Bc6 {[%clk 0:02:43.2]} 19. Rb1 {[%clk 0:02:01.4]} 19... Rc7
{[%clk 0:02:40.2]} 20. Nxc6 {[%clk 0:01:58.6]} 20... Rxc6 {[%clk 0:02:35.2]} 21.
Rxb7 {[%clk 0:01:58.3]} 21... Ra8 {[%clk 0:02:34.6]} 22. f4 {[%clk 0:01:51.3]}
22... Ra6 {[%clk 0:02:30.5]} 23. Bb2 {[%clk 0:01:43.1]} 23... Rxa2 {[%clk
0:02:24]} 24. c6 {[%clk 0:01:40.4]} 24... Nc5 {[%clk 0:02:21.7]} 25. Be5 {[%clk
0:01:35.1]} 25... Kf8 {[%clk 0:02:04.3]} 26. Rg2 {[%clk 0:01:19.1]} 26... Nfe4
{[%clk 0:02:00]} 27. Rh2 {[%clk 0:00:50.6]} 27... h5 {[%clk 0:01:45.7]} 28. f5
{[%clk 0:00:37.7]} 28... f6 {[%clk 0:01:41.2]} 29. fxg6 {[%clk 0:00:33.7]} 29...
fxe5 {[%clk 0:01:40.9]} 30. Rxh5 {[%clk 0:00:33.8]} 30... Rxe2+ {[%clk
0:01:38.8]} 31. Kd1 {[%clk 0:00:26.4]} 31... Nc3+ {[%clk 0:01:38.9]} 32. Kc1
{[%clk 0:00:26.8]} 32... Nd3# {[%clk 0:01:39.8]} 0-1

[Event "Late-Titled-Tuesday-Blitz-February-06-2024"]
[Site "Chess.com"]
[Date "2024.02.06"]
[Round "9"]
[White "Vicmary2005"]
[Black "norwaytoadog"]
[Result "1-0"]
[WhiteElo "2044"]
[BlackElo "2218"]
[TimeControl "180+1"]
[EndTime "15:42:36 PST"]
[Termination "Vicmary2005 won by resignation"]

1. e4 {[%clk 0:03:00.9]} 1... c5 {[%clk 0:02:58.6]} 2. Nf3 {[%clk 0:03:00.4]}
2... d6 {[%clk 0:02:58.8]} 3. d4 {[%clk 0:03:00.2]} 3... cxd4 {[%clk 0:02:59]}
4. Qxd4 {[%clk 0:03:01.1]} 4... Nc6 {[%clk 0:02:57.9]} 5. Bb5 {[%clk 0:03:00.6]}
5... a6 {[%clk 0:02:58.2]} 6. Bxc6+ {[%clk 0:03:00.5]} 6... bxc6 {[%clk
0:02:58.4]} 7. c4 {[%clk 0:03:01]} 7... e5 {[%clk 0:02:58.6]} 8. Qd3 {[%clk
0:03:00.8]} 8... Qc7 {[%clk 0:02:58.7]} 9. Nc3 {[%clk 0:03:01]} 9... a5 {[%clk
0:02:57.6]} 10. Be3 {[%clk 0:02:59.6]} 10... Nf6 {[%clk 0:02:55]} 11. O-O {[%clk
0:02:58.8]} 11... Be7 {[%clk 0:02:52.3]} 12. Rfd1 {[%clk 0:02:58.2]} 12... O-O
{[%clk 0:02:49.7]} 13. c5 {[%clk 0:02:50.8]} 13... dxc5 {[%clk 0:02:43]} 14. Na4
{[%clk 0:02:50.1]} 14... Ba6 {[%clk 0:02:41.7]} 15. Qc3 {[%clk 0:02:49.4]} 15...
Nxe4 {[%clk 0:02:37]} 16. Qc2 {[%clk 0:02:43.7]} 16... f5 {[%clk 0:02:24.4]} 17.
Nxc5 {[%clk 0:02:43.1]} 17... Nxc5 {[%clk 0:02:13.6]} 18. Bxc5 {[%clk 0:02:44]}
18... e4 {[%clk 0:02:00.7]} 19. Nd4 {[%clk 0:02:43.1]} 19... Rfe8 {[%clk
0:01:32.5]} 20. Nxf5 {[%clk 0:02:06.4]} 20... Bf6 {[%clk 0:01:08.6]} 21. Rac1
{[%clk 0:01:57.4]} 21... Qe5 {[%clk 0:00:49.4]} 22. Nd6 {[%clk 0:01:51.8]} 22...
Red8 {[%clk 0:00:35.2]} 23. Qb3+ {[%clk 0:01:46]} 23... Bc4 {[%clk 0:00:11.4]}
24. Qxc4+ {[%clk 0:01:44.3]} 1-0

[Event "Late-Titled-Tuesday-Blitz-February-06-2024"]
[Site "Chess.com"]
[Date "2024.02.06"]
[Round "9"]
[White "IraZyne"]
[Black "xakevicius91"]
[Result "1-0"]
[WhiteElo "2329"]
[BlackElo "2551"]
[TimeControl "180+1"]
[EndTime "15:42:41 PST"]
[Termination "IraZyne won by checkmate"]

1. e4 {[%clk 0:03:00.9]} 1... c5 {[%clk 0:02:52.3]} 2. Nc3 {[%clk 0:03:00.2]}
2... a6 {[%clk 0:02:52]} 3. g3 {[%clk 0:02:59.8]} 3... g6 {[%clk 0:02:50.3]} 4.
Bg2 {[%clk 0:02:59.8]} 4... Bg7 {[%clk 0:02:50.7]} 5. d3 {[%clk 0:02:59.6]} 5...
Nc6 {[%clk 0:02:50.4]} 6. Be3 {[%clk 0:02:59.5]} 6... d6 {[%clk 0:02:48.8]} 7.
Qd2 {[%clk 0:02:54.5]} 7... h5 {[%clk 0:02:47.7]} 8. h3 {[%clk 0:02:54.2]} 8...
Nf6 {[%clk 0:02:47.3]} 9. Nge2 {[%clk 0:02:53.6]} 9... Rb8 {[%clk 0:02:45.2]}
10. f4 {[%clk 0:02:50.3]} 10... b5 {[%clk 0:02:44.5]} 11. e5 {[%clk 0:02:49.9]}
11... dxe5 {[%clk 0:02:27.2]} 12. Bxc6+ {[%clk 0:02:49.2]} 12... Bd7 {[%clk
0:02:27.9]} 13. Bxd7+ {[%clk 0:02:48]} 13... Nxd7 {[%clk 0:02:28.8]} 14. O-O
{[%clk 0:02:46.4]} 14... e6 {[%clk 0:02:26.1]} 15. Ne4 {[%clk 0:02:41.8]} 15...
Qc7 {[%clk 0:02:26.2]} 16. fxe5 {[%clk 0:02:37.1]} 16... Bxe5 {[%clk 0:02:27.1]}
17. Bf4 {[%clk 0:02:35.3]} 17... h4 {[%clk 0:02:24]} 18. g4 {[%clk 0:02:33.3]}
18... Rd8 {[%clk 0:02:12.7]} 19. Bxe5 {[%clk 0:02:32]} 19... Qxe5 {[%clk
0:02:11.2]} 20. Qf4 {[%clk 0:02:31.1]} 20... Qxf4 {[%clk 0:02:10.4]} 21. Rxf4
{[%clk 0:02:29.8]} 21... Ke7 {[%clk 0:02:10.9]} 22. Raf1 {[%clk 0:02:29.1]}
22... f5 {[%clk 0:02:11.5]} 23. gxf5 {[%clk 0:02:20]} 23... gxf5 {[%clk
0:02:12.4]} 24. Nd2 {[%clk 0:02:15.4]} 24... Nf6 {[%clk 0:02:01.4]} 25. Nf3
{[%clk 0:02:11.1]} 25... Nd5 {[%clk 0:02:00]} 26. Rxh4 {[%clk 0:02:09.6]} 26...
Rhg8+ {[%clk 0:01:59.8]} 27. Kf2 {[%clk 0:02:08.5]} 27... Nb4 {[%clk 0:01:53.7]}
28. Rh7+ {[%clk 0:02:03.4]} 28... Kd6 {[%clk 0:01:53.4]} 29. d4 {[%clk
0:01:52.2]} 29... c4 {[%clk 0:01:46.2]} 30. c3 {[%clk 0:01:49.9]} 30... Nd3+
{[%clk 0:01:44.7]} 31. Ke3 {[%clk 0:01:49.3]} 31... Nxb2 {[%clk 0:01:43.4]} 32.
Ne5 {[%clk 0:01:49.2]} 32... Rgf8 {[%clk 0:01:26.5]} 33. Nf7+ {[%clk 0:01:47.1]}
33... Rxf7 {[%clk 0:01:26.6]} 34. Rxf7 {[%clk 0:01:47.2]} 34... Nd3 {[%clk
0:01:26.2]} 35. Nf4 {[%clk 0:01:45.3]} 35... Rg8 {[%clk 0:01:25.6]} 36. Nxd3
{[%clk 0:01:42.3]} 36... cxd3 {[%clk 0:01:26.5]} 37. Rf3 {[%clk 0:01:40.8]}
37... d2 {[%clk 0:01:24.4]} 38. Kxd2 {[%clk 0:01:40.4]} 38... Rg2+ {[%clk
0:01:25]} 39. Kd3 {[%clk 0:01:40.5]} 39... Rxa2 {[%clk 0:01:25.9]} 40. Ra7
{[%clk 0:01:39.2]} 40... Ra3 {[%clk 0:01:25]} 41. Re3 {[%clk 0:01:35.3]} 41...
b4 {[%clk 0:01:24]} 42. Kc4 {[%clk 0:01:35.1]} 42... b3 {[%clk 0:01:24.2]} 43.
Re2 {[%clk 0:01:31.3]} 43... f4 {[%clk 0:01:17.2]} 44. Rb2 {[%clk 0:01:30.2]}
44... f3 {[%clk 0:01:17.2]} 45. Rf7 {[%clk 0:01:29.4]} 45... a5 {[%clk
0:01:14.4]} 46. Rxb3 {[%clk 0:01:28]} 46... Ra2 {[%clk 0:01:12.2]} 47. Rxf3
{[%clk 0:01:27.5]} 47... a4 {[%clk 0:01:13.1]} 48. Rb6+ {[%clk 0:01:26.6]} 48...
Kd7 {[%clk 0:01:12.8]} 49. Rf7+ {[%clk 0:01:25.1]} 49... Kd8 {[%clk 0:01:13.3]}
50. Rb8# {[%clk 0:01:24.1]} 1-0

[Event "Late-Titled-Tuesday-Blitz-February-06-2024"]
[Site "Chess.com"]
[Date "2024.02.06"]
[Round "9"]
[White "DeArron_Fox"]
[Black "kingofthenil"]
[Result "0-1"]
[WhiteElo "2493"]
[BlackElo "2671"]
[TimeControl "180+1"]
[EndTime "15:42:47 PST"]
[Termination "kingofthenil won on time"]

1. d4 {[%clk 0:03:00.9]} 1... Nf6 {[%clk 0:02:54.6]} 2. c4 {[%clk 0:03:01.3]}
2... e6 {[%clk 0:02:55.1]} 3. Nf3 {[%clk 0:03:00.7]} 3... a6 {[%clk 0:02:55.2]}
4. Nc3 {[%clk 0:02:59.8]} 4... d5 {[%clk 0:02:53.6]} 5. cxd5 {[%clk 0:02:58.9]}
5... exd5 {[%clk 0:02:54.5]} 6. Bg5 {[%clk 0:02:51.9]} 6... Be6 {[%clk
0:02:54.6]} 7. e3 {[%clk 0:02:51.7]} 7... Nbd7 {[%clk 0:02:54.6]} 8. Bd3 {[%clk
0:02:51.1]} 8... Bd6 {[%clk 0:02:54.8]} 9. O-O {[%clk 0:02:50.3]} 9... c6 {[%clk
0:02:55.1]} 10. Bf4 {[%clk 0:01:53.6]} 10... Qc7 {[%clk 0:02:46.4]} 11. Bxd6
{[%clk 0:01:52.5]} 11... Qxd6 {[%clk 0:02:47.3]} 12. Nd2 {[%clk 0:01:52.8]}
12... Ng4 {[%clk 0:02:41.6]} 13. g3 {[%clk 0:01:31.4]} 13... h5 {[%clk
0:02:40.6]} 14. Qf3 {[%clk 0:01:00.1]} 14... h4 {[%clk 0:02:39.9]} 15. Qf4
{[%clk 0:00:36.5]} 15... Qe7 {[%clk 0:02:34.3]} 16. e4 {[%clk 0:00:31.8]} 16...
hxg3 {[%clk 0:02:27.1]} 17. hxg3 {[%clk 0:00:29.2]} 17... g5 {[%clk 0:02:27.5]}
18. Qf3 {[%clk 0:00:27.7]} 18... Nh2 {[%clk 0:02:26]} 19. Qe3 {[%clk 0:00:21.4]}
19... Nxf1 {[%clk 0:02:25.3]} 20. Rxf1 {[%clk 0:00:19.5]} 20... dxe4 {[%clk
0:02:25.5]} 21. Ndxe4 {[%clk 0:00:15.4]} 21... g4 {[%clk 0:02:14.2]} 22. Re1
{[%clk 0:00:10.6]} 22... Nb6 {[%clk 0:02:08.5]} 23. Nc5 {[%clk 0:00:08]} 23...
O-O-O {[%clk 0:02:05.7]} 24. Nxe6 {[%clk 0:00:03.3]} 24... fxe6 {[%clk
0:02:06.6]} 25. Bf5 {[%clk 0:00:03.6]} 25... Kb8 {[%clk 0:02:07]} 26. Bxg4
{[%clk 0:00:03.2]} 26... Qh7 {[%clk 0:02:04.8]} 27. Qf4+ {[%clk 0:00:02.5]}
27... Ka7 {[%clk 0:01:58.6]} 28. Bf3 {[%clk 0:00:03.4]} 28... Rhf8 {[%clk
0:01:58.7]} 29. Qe4 {[%clk 0:00:02.3]} 29... Qxe4 {[%clk 0:01:57.2]} 30. Bxe4
{[%clk 0:00:03.1]} 30... Rxd4 {[%clk 0:01:57.9]} 31. Bg2 {[%clk 0:00:02]} 31...
Rd2 {[%clk 0:01:57.1]} 32. Rxe6 {[%clk 0:00:01.6]} 32... Rfxf2 {[%clk
0:01:57.2]} 33. Bh1 {[%clk 0:00:01.8]} 33... Rxb2 {[%clk 0:01:56.8]} 34. Re7
{[%clk 0:00:02.1]} 34... Rfc2 {[%clk 0:01:56.9]} 35. Bxc6 {[%clk 0:00:01]} 35...
Rc1+ {[%clk 0:01:56.4]} 36. Nd1 {[%clk 0:00:01.5]} 36... Rxd1+ {[%clk
0:01:57.3]} 0-1

[Event "Late-Titled-Tuesday-Blitz-February-06-2024"]
[Site "Chess.com"]
[Date "2024.02.06"]
[Round "9"]
[White "frequentblunders"]
[Black "smotherhubbard"]
[Result "1-0"]
[WhiteElo "2165"]
[BlackElo "2332"]
[TimeControl "180+1"]
[EndTime "15:43:16 PST"]
[Termination "frequentblunders won by resignation"]

1. d3 {[%clk 0:03:00.2]} 1... d5 {[%clk 0:02:59.5]} 2. f4 {[%clk 0:03:01.1]}
2... g6 {[%clk 0:02:57.3]} 3. Nf3 {[%clk 0:03:02]} 3... Bg7 {[%clk 0:02:57.8]}
4. g3 {[%clk 0:03:01.2]} 4... Nf6 {[%clk 0:02:58]} 5. Bg2 {[%clk 0:03:01.9]}
5... O-O {[%clk 0:02:57.3]} 6. O-O {[%clk 0:03:02.8]} 6... c5 {[%clk 0:02:57.2]}
7. Nc3 {[%clk 0:03:03.4]} 7... Nc6 {[%clk 0:02:55.7]} 8. e4 {[%clk 0:03:03.6]}
8... dxe4 {[%clk 0:02:52.2]} 9. dxe4 {[%clk 0:03:04.5]} 9... e5 {[%clk
0:02:51.1]} 10. Be3 {[%clk 0:02:56.7]} 10... b6 {[%clk 0:02:43.1]} 11. Nxe5
{[%clk 0:02:30.9]} 11... Nxe5 {[%clk 0:02:41.4]} 12. fxe5 {[%clk 0:02:31.8]}
12... Ng4 {[%clk 0:02:41.7]} 13. Nd5 {[%clk 0:02:26.1]} 13... Bxe5 {[%clk
0:02:19.1]} 14. Bf4 {[%clk 0:02:13.5]} 14... Bd4+ {[%clk 0:02:15.5]} 15. Kh1
{[%clk 0:02:10.9]} 15... Nf2+ {[%clk 0:02:12.8]} 16. Rxf2 {[%clk 0:02:11.1]}
16... Bxf2 {[%clk 0:02:11.9]} 17. e5 {[%clk 0:02:05.7]} 17... Be6 {[%clk
0:01:44.6]} 18. Nf6+ {[%clk 0:01:56.7]} 18... Kg7 {[%clk 0:01:41.4]} 19. Qe2
{[%clk 0:01:40.2]} 19... Qd4 {[%clk 0:01:08]} 20. c3 {[%clk 0:01:25.3]} 20...
Bc4 {[%clk 0:01:05.4]} 21. Qf3 {[%clk 0:01:03.2]} 21... Qd8 {[%clk 0:00:53.8]}
22. Qxf2 {[%clk 0:01:00.6]} 22... Rc8 {[%clk 0:00:53.4]} 23. Qe3 {[%clk
0:00:54.3]} 23... Kh8 {[%clk 0:00:45.4]} 24. Bh6 {[%clk 0:00:50.7]} 24... Qe7
{[%clk 0:00:40.8]} 25. Bxf8 {[%clk 0:00:48.2]} 25... Rxf8 {[%clk 0:00:41.7]} 26.
Qh6 {[%clk 0:00:45.6]} 1-0

[Event "Late-Titled-Tuesday-Blitz-February-06-2024"]
[Site "Chess.com"]
[Date "2024.02.06"]
[Round "9"]
[White "mjelcic"]
[Black "TheMagician"]
[Result "0-1"]
[WhiteElo "2201"]
[BlackElo "2173"]
[TimeControl "180+1"]
[EndTime "15:43:22 PST"]
[Termination "TheMagician won by resignation"]

1. d4 {[%clk 0:02:58.5]} 1... Nf6 {[%clk 0:02:57.1]} 2. Nf3 {[%clk 0:02:54.2]}
2... d5 {[%clk 0:02:56]} 3. c4 {[%clk 0:02:47.1]} 3... e6 {[%clk 0:02:54.6]} 4.
e3 {[%clk 0:02:46.2]} 4... Be7 {[%clk 0:02:54.3]} 5. Nc3 {[%clk 0:02:40.2]} 5...
O-O {[%clk 0:02:54]} 6. Bd3 {[%clk 0:02:38.9]} 6... dxc4 {[%clk 0:02:54.1]} 7.
Bxc4 {[%clk 0:02:39.8]} 7... a6 {[%clk 0:02:54.7]} 8. O-O {[%clk 0:02:39.1]}
8... b5 {[%clk 0:02:54.7]} 9. Bb3 {[%clk 0:02:39.4]} 9... c5 {[%clk 0:02:54.9]}
10. dxc5 {[%clk 0:02:37.4]} 10... Qxd1 {[%clk 0:02:49.5]} 11. Rxd1 {[%clk
0:02:38.3]} 11... Bxc5 {[%clk 0:02:49.8]} 12. a4 {[%clk 0:02:32.4]} 12... b4
{[%clk 0:02:49.1]} 13. Ne2 {[%clk 0:02:29.3]} 13... Nc6 {[%clk 0:02:43.4]} 14.
Bd2 {[%clk 0:02:23]} 14... Na5 {[%clk 0:02:40.8]} 15. Bc2 {[%clk 0:02:21.2]}
15... Bb7 {[%clk 0:02:35.2]} 16. Ned4 {[%clk 0:02:20.4]} 16... Rfd8 {[%clk
0:02:29.4]} 17. Be1 {[%clk 0:02:16.1]} 17... Be4 {[%clk 0:02:16.4]} 18. Bxe4
{[%clk 0:02:14.8]} 18... Nxe4 {[%clk 0:02:16.3]} 19. Rac1 {[%clk 0:02:13]} 19...
Bf8 {[%clk 0:02:09.7]} 20. Ne5 {[%clk 0:02:06.6]} 20... f6 {[%clk 0:01:58.3]}
21. Nec6 {[%clk 0:02:04.3]} 21... Nxc6 {[%clk 0:01:58.3]} 22. Nxc6 {[%clk
0:02:04.2]} 22... Rxd1 {[%clk 0:01:55.5]} 23. Rxd1 {[%clk 0:02:05.1]} 23... a5
{[%clk 0:01:48.7]} 24. Rd8 {[%clk 0:02:00.4]} 24... Ra6 {[%clk 0:01:42]} 25. Nb8
{[%clk 0:01:55.9]} 25... Rd6 {[%clk 0:01:37.1]} 26. Nd7 {[%clk 0:01:53.6]} 26...
Rxd7 {[%clk 0:01:29.6]} 27. Rxd7 {[%clk 0:01:53]} 27... Nc5 {[%clk 0:01:30.5]}
28. Ra7 {[%clk 0:01:42.4]} 28... Nxa4 {[%clk 0:01:30.5]} 29. b3 {[%clk
0:01:40.2]} 29... Nc5 {[%clk 0:01:30.1]} 30. Rxa5 {[%clk 0:01:39.8]} 30... Nxb3
{[%clk 0:01:30.1]} 31. Rb5 {[%clk 0:01:40.1]} 31... Kf7 {[%clk 0:01:23.7]} 32.
Rb7+ {[%clk 0:01:37.4]} 32... Kg6 {[%clk 0:01:22.7]} 33. Bxb4 {[%clk 0:01:37.2]}
33... Bxb4 {[%clk 0:01:19.6]} 34. Rxb4 {[%clk 0:01:38.1]} 34... Nc5 {[%clk
0:01:18.3]} 35. Rc4 {[%clk 0:01:35.8]} 35... Nd7 {[%clk 0:01:15.5]} 36. Rc7
{[%clk 0:01:35]} 36... Nf8 {[%clk 0:01:12.9]} 37. h4 {[%clk 0:01:35.9]} 37... h5
{[%clk 0:01:12.3]} 38. f3 {[%clk 0:01:33.4]} 38... e5 {[%clk 0:01:12.5]} 39. Kf2
{[%clk 0:01:33.5]} 39... Ne6 {[%clk 0:01:12.4]} 40. Re7 {[%clk 0:01:31.8]} 40...
Nc5 {[%clk 0:01:10.7]} 41. g4 {[%clk 0:01:29.4]} 41... hxg4 {[%clk 0:01:09.4]}
42. fxg4 {[%clk 0:01:29.2]} 42... Ne4+ {[%clk 0:01:09.4]} 43. Kf3 {[%clk
0:01:28.8]} 43... Nd2+ {[%clk 0:01:09.6]} 44. Kg2 {[%clk 0:01:26.4]} 44... Nc4
{[%clk 0:01:07.4]} 45. h5+ {[%clk 0:01:26.7]} 45... Kh6 {[%clk 0:01:07.1]} 46.
Kf3 {[%clk 0:01:26.1]} 46... Nd2+ {[%clk 0:01:06.7]} 47. Ke2 {[%clk 0:01:25.4]}
47... Ne4 {[%clk 0:01:05.7]} 48. Ra7 {[%clk 0:01:25.4]} 48... g6 {[%clk
0:01:03.6]} 49. Ra8 {[%clk 0:01:17.7]} 49... gxh5 {[%clk 0:01:03.4]} 50. Rh8+
{[%clk 0:01:17.6]} 50... Kg7 {[%clk 0:01:02]} 51. gxh5 {[%clk 0:01:11.9]} 51...
Kxh8 {[%clk 0:01:00.3]} 0-1

[Event "Late-Titled-Tuesday-Blitz-February-06-2024"]
[Site "Chess.com"]
[Date "2024.02.06"]
[Round "9"]
[White "picturesquecheck"]
[Black "Kostukov_Alex"]
[Result "1-0"]
[WhiteElo "2393"]
[BlackElo "2282"]
[TimeControl "180+1"]
[EndTime "15:43:25 PST"]
[Termination "picturesquecheck won on time"]

1. Nf3 {[%clk 0:03:00.9]} 1... g6 {[%clk 0:02:58.8]} 2. e4 {[%clk 0:02:59.3]}
2... c5 {[%clk 0:02:58.6]} 3. d4 {[%clk 0:02:57.8]} 3... cxd4 {[%clk 0:02:59.5]}
4. Nxd4 {[%clk 0:02:57.9]} 4... Bg7 {[%clk 0:02:59]} 5. Nc3 {[%clk 0:02:57.9]}
5... Nc6 {[%clk 0:02:59.3]} 6. Be3 {[%clk 0:02:53.1]} 6... Nf6 {[%clk
0:02:59.3]} 7. Bc4 {[%clk 0:02:51]} 7... O-O {[%clk 0:02:54.3]} 8. Bb3 {[%clk
0:02:50.9]} 8... a5 {[%clk 0:02:53.5]} 9. O-O {[%clk 0:02:49.5]} 9... a4 {[%clk
0:02:53]} 10. Nxa4 {[%clk 0:02:49.7]} 10... Nxe4 {[%clk 0:02:52.6]} 11. Nb5
{[%clk 0:02:48]} 11... d5 {[%clk 0:02:46.6]} 12. Qe2 {[%clk 0:02:46.4]} 12... e5
{[%clk 0:02:18.7]} 13. Nb6 {[%clk 0:02:38.1]} 13... Ra5 {[%clk 0:02:12.3]} 14.
Nxd5 {[%clk 0:02:29.1]} 14... Qh4 {[%clk 0:01:35.6]} 15. Rad1 {[%clk 0:02:00.3]}
15... Kh8 {[%clk 0:01:10.5]} 16. f3 {[%clk 0:01:50.2]} 16... Nf6 {[%clk
0:00:57.7]} 17. Nxf6 {[%clk 0:01:47.3]} 17... Bxf6 {[%clk 0:00:58.5]} 18. Nd6
{[%clk 0:01:46.4]} 18... Kg7 {[%clk 0:00:48.3]} 19. Nxc8 {[%clk 0:01:43.2]}
19... Rxc8 {[%clk 0:00:47.9]} 20. Rd7 {[%clk 0:01:43.2]} 20... Ne7 {[%clk
0:00:27.3]} 21. Rxb7 {[%clk 0:01:36.5]} 21... Raa8 {[%clk 0:00:10.7]} 22. Bf2
{[%clk 0:01:36.3]} 22... Qf4 {[%clk 0:00:08.4]} 23. Rd1 {[%clk 0:01:27.7]} 23...
Rab8 {[%clk 0:00:07.1]} 24. Ra7 {[%clk 0:01:21.1]} 24... h5 {[%clk 0:00:05.4]}
25. g3 {[%clk 0:01:16.1]} 25... Qf5 {[%clk 0:00:04.5]} 26. Rdd7 {[%clk
0:01:14.5]} 26... Re8 {[%clk 0:00:02.9]} 27. Qe4 {[%clk 0:01:10.7]} 27... Qg5
{[%clk 0:00:01.7]} 28. Be3 {[%clk 0:01:08.7]} 28... Qf5 {[%clk 0:00:01.2]} 29.
Qxf5 {[%clk 0:01:06.5]} 29... gxf5 {[%clk 0:00:02.1]} 30. Bc5 {[%clk 0:01:05.9]}
1-0